Workbook

Sheet Sheet1
A1: result | G1: 283 | J1: 1 - Enter your data in the yellow cells in Columns 17 & 18 (<=30 sets) | Q1: =MAX(Q8:Q50) -> 1 | R1: =MAX(R8:R50) -> 1.34025 | Y1: Data #
A2: coefficients and r-lag-1 | J2: 2 - Sort on x-value for visual convenience | Q2: =MIN(Q8:Q50) -> 0 | R2: =MIN(R8:R50) -> 1.3266 | Y2: 21
D3: a = | E3: 1.332813094 | J3: 3 - Duplicate the data in Columns 3 & 4
A4: cubic Akaho | D4: b = | E4: 0.007385715831 | H4: r-lag-1 = | I4: =I6/H6 -> 0.3460850577 | J4: 4 - Enter your model in the VBA function "Model" | R4: N Realizations = | U4: Trial = | Y4: sigma =
A5: 1.330868768 | D5: c = | E5: 4.319023887 | J5: 5 - Adjust the range in Columns 5-8 and 19 to match your data length | R5: 100 | U5: 100 | Y5: =STDEV(Y8:Y515) -> 0.0002495367997
A6: 0.05163764892 | D6: d = | E6: -0.1189465041 | F6: SSD = | G6: =SUM(G8:G108) -> 2.42412698 | H6: =SUM(H8:H108) -> 2.57225104e-06 | I6: =SUM(I8:I108) -> 8.902176498e-07 | J6: 6 - Call solver and set up in blue cells for your model
A7: -0.08115491746 | C7: x-sample | D7: y-sample | E7: ymodel | F7: d | G7: Akakho d^2 | H7: d^2 | I7: d*d-1 | J7: 7 - Choose a number of Bootstrapping realizations (<=500) | Q7: x-data | R7: y-data | S7: ymodel | T7: ymodelhigh | U7: ymodellow | V7: ymodel97.5 | W7: ymodel02.5
A8: 0.02652646858 | C8: 0 | D8: 1.3315 | E8: =model(C8,$E$3,$E$4,$E$5,$E$6) -> 1.331936659 | F8: =D8-E8 -> -0.0004366593598 | G8: =akaho_d2(C8,F8,$E$4,$E$5,$E$6) -> 0.1732868652 | H8: =F8^2 -> 1.906713965e-07 | J8: 8 - Press the "Bootstrapping" button | Q8: 0 | R8: 1.3315 | S8: =model(Q8,$E$3,$E$4,$E$5,$E$6) -> 1.331936659 | T8: 1.332992869 | U8: 1.331501137 | V8: 1.332484452 | W8: 1.331388867 | Y8: 1.32601718
A9: -0.6062963869 | C9: 0.05 | D9: 1.333 | E9: =model(C9,$E$3,$E$4,$E$5,$E$6) -> 1.33352842 | F9: =D9-E9 -> -0.0005284203333 | G9: =akaho_d2(C9,F9,$E$4,$E$5,$E$6) -> 0.253659053 | H9: =F9^2 -> 2.792280487e-07 | I9: =F8*F9 -> 2.307396845e-07 | Q9: 0.05 | R9: 1.333 | S9: =model(Q9,$E$3,$E$4,$E$5,$E$6) -> 1.33352842 | T9: 1.334468334 | U9: 1.333097509 | V9: 1.334034184 | W9: 1.333022657 | Y9: 1.326268011
C10: 0.1 | D10: 1.335 | E10: 1.335086952 | F10: -8.695157844e-05 | G10: 0.006922906339 | H10: 7.560576994e-09 | I10: =F9*F10 -> 4.594698207e-08 | Q10: 0.1 | R10: 1.335 | S10: 1.335086952 | T10: 1.335857329 | U10: 1.334693618 | V10: 1.335527024 | W10: 1.334646879 | Y10: 1.326449546
A11: cubic SSD | C11: 0.15 | D11: 1.337 | E11: 1.336539853 | F11: 0.0004601468611 | G11: 0.1968078202 | H11: 2.117351338e-07 | I11: -4.001049589e-08 | Q11: 0.15 | R11: 1.337 | S11: 1.336539853 | T11: 1.337113251 | U11: 1.336208438 | V11: 1.336904834 | W11: 1.336174873 | Y11: 1.326617328
A12: 1.331405594 | C12: 0.2 | D12: 1.33825 | E12: 1.337819632 | F12: 0.0004303680239 | G12: 0.175561092 | H12: 1.85216636e-07 | I12: 1.980324953e-07 | Q12: 0.2 | R12: 1.33825 | S12: 1.337819632 | T12: 1.338249498 | U12: 1.337505289 | V12: 1.338119015 | W12: 1.337520249 | Y12: 1.326639305
A13: 0.04873931665 | C13: 0.25 | D13: 1.3394 | E13: 1.338866837 | F13: 0.0005331627114 | G13: 0.2750769806 | H13: 2.842624769e-07 | I13: 2.294561825e-07 | Q13: 0.25 | R13: 1.3394 | S13: 1.338866837 | T13: 1.339165567 | U13: 1.33853324 | V13: 1.339129031 | W13: 1.338604643 | Y13: 1.325836255
A14: -0.0785256422 | C14: 0.3 | D14: 1.33975 | E14: 1.339632822 | F14: 0.0001171777629 | G14: 0.01352773916 | H14: 1.373062812e-08 | I14: 6.24748138e-08 | Q14: 0.3 | R14: 1.33975 | S14: 1.339632822 | T14: 1.33997378 | U14: 1.339294262 | V14: 1.339891529 | W14: 1.339374115 | Y14: 1.326503346
A15: 0.02670940254 | C15: 0.35 | D15: 1.34025 | E15: 1.340082004 | F15: 0.0001679962165 | G15: 0.0281328976 | H15: 2.822272876e-08 | I15: 1.968542083e-08 | Q15: 0.35 | R15: 1.34025 | S15: 1.340082004 | T15: 1.340509282 | U15: 1.33975799 | V15: 1.340355548 | W15: 1.33980846 | Y15: 1.326593876
A16: -0.5737761121 | C16: 0.4 | D16: 1.34 | E16: 1.340193516 | F16: -0.0001935156639 | G16: 0.03744285166 | H16: 3.744831217e-08 | I16: -3.250989937e-08 | Q16: 0.4 | R16: 1.34 | S16: 1.340193516 | T16: 1.340687606 | U16: 1.339862025 | V16: 1.340481078 | W16: 1.339905953 | Y16: 1.326390451
C17: 0.45 | D17: 1.3395 | E17: 1.339962178 | F17: -0.0004621777092 | G17: 0.2122464921 | H17: 2.136082349e-07 | I17: 8.943862623e-08 | Q17: 0.45 | R17: 1.3395 | S17: 1.339962178 | T17: 1.340500128 | U17: 1.339565828 | V17: 1.340253583 | W17: 1.339670772 | Y17: 1.326276505
A18: power Akaho | C18: 0.5 | D18: 1.339 | E18: 1.339398736 | F18: -0.0003987364849 | G18: 0.1557432844 | H18: 1.589907844e-07 | I18: 1.842871152e-07 | Q18: 0.5 | R18: 1.339 | S18: 1.339398736 | T18: 1.339955913 | U18: 1.338987653 | V18: 1.339684955 | W18: 1.339112518 | Y18: 1.326386812
A19: 1.331466641 | C19: 0.55 | D19: 1.33875 | E19: =model(C19,$E$3,$E$4,$E$5,$E$6) -> 1.338529366 | F19: =D19-E19 -> 0.0002206339302 | G19: =akaho_d2(C19,F19,$E$4,$E$5,$E$6) -> 0.04677098653 | H19: =F19^2 -> 4.867933116e-08 | I19: =F18*F19 -> -8.797479778e-08 | Q19: 0.55 | R19: 1.33875 | S19: =model(Q19,$E$3,$E$4,$E$5,$E$6) -> 1.338529366 | T19: 1.339081277 | U19: 1.338149676 | V19: 1.338810095 | W19: 1.338248637 | Y19: 1.326553749
A20: 0.0627250124 | C20: 0.6 | D20: 1.3369 | E20: 1.337394452 | F20: -0.000494452167 | G20: 0.23007937 | H20: 2.444829455e-07 | I20: -1.090929249e-07 | Q20: 0.6 | R20: 1.3369 | S20: 1.337394452 | T20: 1.337918508 | U20: 1.33699633 | V20: 1.337680024 | W20: 1.33710888 | Y20: 1.326365682
A21: -0.06676416581 | C21: 0.65 | D21: 1.336 | E21: 1.336046716 | F21: -4.671602752e-05 | G21: 0.002016527842 | H21: 2.182387228e-09 | I21: 2.309884104e-08 | Q21: 0.65 | R21: 1.336 | S21: 1.336046716 | T21: 1.33652383 | U21: 1.335520647 | V21: 1.336350953 | W21: 1.335742479 | Y21: 1.32632794
A22: 1.523449232 | C22: 0.7 | D22: 1.3344 | E22: 1.334548765 | F22: -0.000148765339 | G22: 0.02019013639 | H22: 2.21311261e-08 | I22: 6.949725673e-09 | Q22: 0.7 | R22: 1.3344 | S22: 1.334548765 | T22: 1.334964678 | U22: 1.333919127 | V22: 1.334877326 | W22: 1.334220205 | Y22: 1.326351469
A23: -0.5186356196 | C23: 0.75 | D23: 1.3335 | E23: 1.332970186 | F23: 0.0005298141493 | G23: 0.2547886993 | H23: 2.807030328e-07 | I23: -7.881798154e-08 | Q23: 0.75 | R23: 1.3335 | S23: 1.332970186 | T23: 1.333316441 | U23: 1.332272838 | V23: 1.333314293 | W23: 1.332626079 | Y23: 1.326244616
C24: 0.8 | D24: 1.33175 | E24: 1.331384309 | F24: 0.0003656911608 | G24: 0.1218000647 | H24: 1.337300251e-07 | I24: 1.937483512e-07 | Q24: 0.8 | R24: 1.33175 | S24: 1.331384309 | T24: 1.33167133 | U24: 1.330682022 | V24: 1.331722505 | W24: 1.331046113 | Y24: 1.326561333
A25: power SSD | C25: 0.85 | D25: 1.33 | E25: 1.329864805 | F25: 0.0001351954199 | G25: 0.01683751464 | H25: 1.827780157e-08 | I25: 4.943977005e-08 | Q25: 0.85 | R25: 1.33 | S25: 1.329864805 | T25: 1.330159326 | U25: 1.329233437 | V25: 1.33017256 | W25: 1.329557049 | Y25: 1.326494323
A26: 1.331530118 | C26: 0.9 | D26: 1.3285 | E26: 1.32848226 | F26: 1.77399288e-05 | G26: 0.0002950081094 | H26: 3.147050737e-10 | I26: 2.398357123e-09 | Q26: 0.9 | R26: 1.3285 | S26: 1.32848226 | T26: 1.328766095 | U26: 1.327989168 | V26: 1.328758616 | W26: 1.328205904 | Y26: 1.326488065
A27: 0.06304923115 | C27: 0.95 | D27: 1.3269 | E27: 1.3273009 | F27: -0.0004008999872 | G27: 0.1537885647 | H27: 1.607207997e-07 | I27: -7.111937227e-09 | Q27: 0.95 | R27: 1.3269 | S27: 1.3273009 | T27: 1.327579475 | U27: 1.326838686 | V27: 1.327619671 | W27: 1.326982129 | Y27: 1.326717778
A28: -0.06670068925 | C28: 1 | D28: 1.3266 | E28: 1.326375603 | F28: 0.0002243968117 | G28: 0.04915212532 | H28: 5.035392912e-08 | I28: -8.996067895e-08 | Q28: 1 | R28: 1.3266 | S28: 1.326375603 | T28: 1.326800977 | U28: 1.325520834 | V28: 1.326864695 | W28: 1.325886511 | Y28: 1.326125714
A29: 1.493697819 | Y29: 1.326318461
A30: -0.4859156608 | Y30: 1.326365606
Y31: 1.325695085
A32: sine Akaho | Y32: 1.326248438
A33: 1.333745568 | Y33: 1.326374527
A34: 0.006591749052 | Y34: 1.326279215
A35: -4.28418655 | Y35: 1.325765409
A36: -0.7850729114 | Y36: 1.326115518
A37: -0.3520185761 | Y37: 1.326336644
Y38: 1.326072973
A39: sine SSD | Y39: 1.326370436
A40: 1.333764771 | Y40: 1.326199017
A41: 0.006590680672 | Y41: 1.326278548
A42: -4.290516827 | Y42: 1.32615584
A43: -0.7876361253 | Y43: 1.326473069
A44: -0.3572236972 | Y44: 1.326619223
Y45: 1.326356969
Y46: 1.326293796
Y47: 1.326589302
Y48: 1.326181618
Y49: 1.325920083
Y50: 1.326272891
Y51: 1.325837532
Y52: 1.326248459
Y53: 1.326375336
Y54: 1.326335603
Y55: 1.326431133
Y56: 1.326004006
Y57: 1.32658685
Y58: 1.326622022
Y59: 1.326419735
Y60: 1.326458907
Y61: 1.326619579
Y62: 1.326594026
Y63: 1.32657027
Y64: 1.326439253
Y65: 1.326443717
Y66: 1.325848446
Y67: 1.325844266
Y68: 1.326188273
Y69: 1.326274554
Y70: 1.325929248
Y71: 1.325520834
Y72: 1.325752294
Y73: 1.32573547
Y74: 1.326464174
Y75: 1.326278173
Y76: 1.326455765
Y77: 1.326419914
Y78: 1.326618116
Y79: 1.326584595
Y80: 1.326321053
Y81: 1.326610662
Y82: 1.326800977
Y83: 1.32646014
Y84: 1.326239349
Y85: 1.326398196
Y86: 1.326402142
Y87: 1.326499377
Y88: 1.326467119
Y89: 1.326284223
Y90: 1.326087624
Y91: 1.326290896
Y92: 1.325907987
Y93: 1.326097012
Y94: 1.3264269
Y95: 1.326216962
Y96: 1.326351587
Y97: 1.326388472
Y98: 1.326482732
Y99: 1.326318088
Y100: 1.326190981
Y101: 1.326498028
Y102: 1.326443387
Y103: 1.326585531
Y104: 1.326581652
Y105: 1.326473452
Y106: 1.326341533
Y107: 1.326388844
